[Event "Sunway Sitges Chess Festival"]
[Date "2024.12.22"]
[White "Allahverdiyeva, Ayan"]
[Black "Alinasab, Mobina"]
[WhiteElo "2194"]
[BlackElo "2330"]
[Round "10.21"]
[Result "0-1"]
[TimeControl "40/5400+30:1800+30"]

1. e4 {[%clk 1:30:52]} 1... c5 {[%clk 1:30:40]} 2. Nf3 {[%clk 1:31:17]} 2... a6
{[%clk 1:31:08]} 3. c3 {[%clk 1:31:39]} 3... d5 {[%clk 1:31:33]} 4. exd5 {[%clk
1:32:03]} 4... Qxd5 {[%clk 1:31:57]} 5. Na3 {[%clk 1:32:28]} 5... Nf6 {[%clk
1:32:15]} 6. Be2 {[%clk 1:14:08]} 6... Qd8 {[%clk 1:09:31]} 7. Nc4 {[%clk
1:07:47]} 7... Nc6 {[%clk 1:07:57]} 8. a4 {[%clk 1:00:52]} 8... e6 {[%clk
1:03:06]} 9. O-O {[%clk 0:59:53]} 9... Be7 {[%clk 0:57:36]} 10. a5 {[%clk
0:58:12]} 10... Nd5 {[%clk 0:56:54]} 11. Re1 {[%clk 1:17:02]} 11... O-O {[%clk
0:53:55]} 12. d3 {[%clk 1:13:49]} 12... Qc7 {[%clk 0:52:27]} 13. Qb3 {[%clk
1:09:07]} 13... Rb8 {[%clk 0:47:22]} 14. Nb6 {[%clk 0:59:55]} 14... Nxa5 {[%clk
0:41:40]} 15. Rxa5 {[%clk 0:59:32]} 15... Nxb6 {[%clk 0:44:55]} 16. Bf1 {[%clk
0:50:41]} 16... Nd5 {[%clk 0:41:33]} 17. Ra4 {[%clk 0:42:17]} 17... b5 {[%clk
0:33:42]} 18. Rg4 {[%clk 0:33:27]} 18... f6 {[%clk 0:25:23]} 19. d4 {[%clk
0:33:10]} 19... c4 {[%clk 0:23:31]} 20. Qc2 {[%clk 0:57:50]} 20... Rf7 {[%clk
0:20:35]} 21. h4 {[%clk 0:54:55]} 21... Bd7 {[%clk 0:19:03]} 22. h5 {[%clk
0:57:21]} 22... Kh8 {[%clk 0:18:32]} 23. Rg3 {[%clk 0:54:04]} 23... Bd6 {[%clk
0:18:32]} 24. Rh3 {[%clk 0:53:59]} 24... Re8 {[%clk 0:15:17]} 25. g3 {[%clk
0:48:21]} 25... Kg8 {[%clk 0:13:52]} 26. Rh4 {[%clk 0:41:17]} 26... Bc6 {[%clk
0:05:11]} 27. Bg2 {[%clk 0:38:34]} 27... Rfe7 {[%clk 0:11:03]} 28. Nd2 {[%clk
0:34:08]} 28... f5 {[%clk 0:11:09]} 29. Nf3 {[%clk 0:34:00]} 29... Nf6 {[%clk
0:04:42]} 30. Ne5 {[%clk 0:33:22]} 30... Bxg2 {[%clk 0:10:03]} 31. Kxg2 {[%clk
0:29:19]} 31... Bxe5 {[%clk 0:06:50]} 32. Rxe5 {[%clk 0:28:15]} 32... h6 {[%clk
0:04:54]} 33. Kg1 {[%clk 0:22:29]} 33... Qb7 {[%clk 0:01:41]} 34. b3 {[%clk
0:17:57]} 34... Nd7 {[%clk 0:05:00]} 35. Re1 {[%clk 0:16:02]} 35... cxb3 {[%clk
0:02:02]} 36. Qxb3 {[%clk 0:16:27]} 36... Qd5 {[%clk 0:00:-49]} 37. Qc2 {[%clk
0:13:40]} 37... Rc8 {[%clk 0:-2:-51]} 38. Ba3 {[%clk 0:11:33]} 38... Rf7 {[%clk
0:02:45]} 39. Rf4 {[%clk 0:09:07]} 39... Nf6 {[%clk 0:01:31]} 40. Re5 {[%clk
0:40:22]} 40... Qd7 {[%clk 0:00:-26]} 41. Bc5 {[%clk 0:33:34]} 41... Nxh5 {[%clk
0:24:35]} 42. Rf3 {[%clk 0:32:30]} 42... Nf6 {[%clk 0:24:01]} 43. Qa2 {[%clk
0:32:09]} 43... Rc6 {[%clk 0:23:59]} 44. c4 {[%clk 0:31:19]} 44... bxc4 {[%clk
0:23:59]} 45. Qxc4 {[%clk 0:30:19]} 45... Kh7 {[%clk 0:11:52]} 46. Ra3 {[%clk
0:27:29]} 46... Ne4 {[%clk 0:14:53]} 47. Qa2 {[%clk 0:23:01]} 47... Qc8 {[%clk
0:12:28]} 48. Kg2 {[%clk 0:22:12]} 48... Nxc5 {[%clk 0:05:23]} 49. dxc5 {[%clk
0:19:23]} 49... Rfc7 {[%clk 0:02:01]} 50. Rae3 {[%clk 0:20:48]} 50... Rxc5
{[%clk 0:02:22]} 51. Rxe6 {[%clk 0:18:15]} 51... Qb7+ {[%clk 0:02:43]} 52. Kg1
{[%clk 0:18:40]} 52... Rc1+ {[%clk 0:02:30]} 53. Re1 {[%clk 0:19:06]} 53... R7c2
{[%clk 0:01:21]} 54. Qa3 {[%clk 0:18:13]} 54... Qb1 {[%clk 0:01:00]} 55. Kf1
{[%clk 0:18:39]} 55... Qb5+ {[%clk 0:00:08]} 56. Kg1 {[%clk 0:19:05]} 56...
Rxe1+ {[%clk 0:00:38]} 57. Rxe1 {[%clk 0:19:30]} 57... Qc5 {[%clk 0:00:04]} 58.
Qf3 {[%clk 0:19:55]} 58... Rc1 {[%clk 0:00:-16]} 59. Rxc1 {[%clk 0:20:13]} 59...
Qxc1+ {[%clk 0:01:08]} 60. Kh2 {[%clk 0:20:39]} 60... Qc2 {[%clk 0:01:18]} 61.
Kg1 {[%clk 0:20:04]} 61... a5 {[%clk 0:00:26]} 62. Qa8 {[%clk 0:20:30]} 62... a4
{[%clk 0:01:17]} 63. Qa5 {[%clk 0:20:56]} 63... Qb1+ {[%clk 0:01:01]} 64. Kh2
{[%clk 0:21:18]} 64... Qe4 {[%clk 0:01:26]} 65. Qc3 {[%clk 0:21:22]} 65... Qa8
{[%clk 0:00:56]} 66. Qa3 {[%clk 0:21:43]} 66... Qa7 {[%clk 0:00:28]} 67. Kg1
{[%clk 0:22:00]} 67... Qa5 {[%clk 0:01:10]} 68. Kg2 {[%clk 0:21:33]} 68... Qd5+
{[%clk 0:01:20]} 69. Kh2 {[%clk 0:21:09]} 69... Qb3 {[%clk 0:01:38]} 70. Qc5
{[%clk 0:21:36]} 70... Qf3 {[%clk 0:01:58]} 71. Kg1 {[%clk 0:22:03]} 71... a3
{[%clk 0:02:22]} 72. Qa5 {[%clk 0:22:31]} 72... Qd3 {[%clk 0:00:54]} 73. Kh2
{[%clk 0:22:45]} 73... h5 {[%clk 0:00:42]} 74. Kg2 {[%clk 0:22:23]} 74... Qe4+
{[%clk 0:00:39]} 75. Kh2 {[%clk 0:22:48]} 75... Qf3 {[%clk 0:00:53]} 76. Kg1
{[%clk 0:23:09]} 76... h4 {[%clk 0:01:04]} 77. gxh4 {[%clk 0:23:31]} 77... Kg6
{[%clk 0:00:39]} 78. Qd8 {[%clk 0:23:50]} 78... Qg4+ {[%clk 0:00:52]} 79. Kf1
{[%clk 0:24:16]} 79... a2 {[%clk 0:00:48]} 0-1

[Variant "Standard"]
[Site "Europe Echecs"]

[Event "Sunway Sitges Chess Festival"]
[Date "2024.12.22"]
[White "Velten, Paul"]
[Black "Lee, Jun Wei"]
[WhiteElo "2501"]
[BlackElo "2238"]
[Round "10.22"]
[Result "1-0"]
[TimeControl "40/5400+30:1800+30"]

1. e4 {[%clk 1:28:52]} 1... c6 {[%clk 1:30:52]} 2. d4 {[%clk 1:28:50]} 2... d5
{[%clk 1:31:13]} 3. e5 {[%clk 1:28:54]} 3... Bf5 {[%clk 1:31:18]} 4. h4 {[%clk
1:28:14]} 4... h5 {[%clk 1:30:59]} 5. Bd3 {[%clk 1:28:10]} 5... Bxd3 {[%clk
1:30:43]} 6. Qxd3 {[%clk 1:28:23]} 6... Qa5+ {[%clk 1:29:21]} 7. b4 {[%clk
1:28:13]} 7... Qxb4+ {[%clk 1:29:02]} 8. Nd2 {[%clk 1:28:30]} 8... e6 {[%clk
1:27:42]} 9. Rb1 {[%clk 1:28:43]} 9... Qe7 {[%clk 1:28:10]} 10. Ne2 {[%clk
1:28:29]} 10... Nh6 {[%clk 0:49:20]} 11. Ng3 {[%clk 1:25:41]} 11... Qd7 {[%clk
0:49:37]} 12. c4 {[%clk 1:24:16]} 12... b6 {[%clk 0:48:15]} 13. O-O {[%clk
1:21:24]} 13... c5 {[%clk 0:43:02]} 14. dxc5 {[%clk 1:18:51]} 14... Bxc5 {[%clk
0:42:00]} 15. Ba3 {[%clk 1:13:36]} 15... Nc6 {[%clk 0:36:06]} 16. Bxc5 {[%clk
1:12:23]} 16... bxc5 {[%clk 0:36:29]} 17. Qe3 {[%clk 1:11:49]} 17... Qe7 {[%clk
0:30:01]} 18. cxd5 {[%clk 1:10:51]} 18... exd5 {[%clk 0:30:30]} 19. Nf3 {[%clk
1:11:04]} 19... O-O {[%clk 0:29:24]} 20. Rfe1 {[%clk 1:10:09]} 20... Ng4 {[%clk
0:17:22]} 21. Qd2 {[%clk 1:08:25]} 21... g6 {[%clk 0:16:09]} 22. Qxd5 {[%clk
1:08:06]} 22... Nb4 {[%clk 0:16:23]} 23. Qc4 {[%clk 1:07:45]} 23... Rad8 {[%clk
0:11:42]} 24. e6 {[%clk 1:07:30]} 24... Nd3 {[%clk 0:08:35]} 25. Re2 {[%clk
1:07:40]} 25... f6 {[%clk 0:06:12]} 26. Qe4 {[%clk 1:05:18]} 26... Nde5 {[%clk
0:04:39]} 27. Qc2 {[%clk 0:59:02]} 27... Qxe6 {[%clk 0:04:00]} 28. Qxg6+ {[%clk
0:56:40]} 28... Nxg6 {[%clk 0:04:29]} 29. Rxe6 {[%clk 0:57:02]} 29... Nf4 {[%clk
0:03:50]} 30. Re4 {[%clk 0:57:12]} 30... Nd3 {[%clk 0:03:22]} 31. Nxh5 {[%clk
0:56:54]} 31... Ndxf2 {[%clk 0:03:07]} 32. Ra4 {[%clk 0:56:53]} 32... Rf7 {[%clk
0:02:21]} 33. Rf1 {[%clk 0:57:07]} 33... Rd5 {[%clk 0:00:51]} 34. Nf4 {[%clk
0:57:08]} 34... Rd1 {[%clk 0:00:39]} 35. Rxd1 {[%clk 0:43:30]} 35... Nxd1 {[%clk
0:01:08]} 36. Nd5 {[%clk 0:43:56]} 36... Nde3 {[%clk 0:00:58]} 37. Nxe3 {[%clk
0:44:21]} 37... Nxe3 {[%clk 0:01:26]} 38. Kf2 {[%clk 0:44:47]} 38... Re7 {[%clk
0:00:56]} 39. Ra6 {[%clk 0:43:51]} 39... Kg7 {[%clk 0:00:42]} 40. Rc6 {[%clk
1:14:08]} 40... c4 {[%clk 0:30:39]} 41. Nd4 {[%clk 1:06:49]} 41... Re4 {[%clk
0:28:12]} 42. Ne6+ {[%clk 0:56:15]} 42... Kf7 {[%clk 0:24:46]} 43. Kf3 {[%clk
0:56:21]} 43... Re5 {[%clk 0:24:03]} 44. Nf4 {[%clk 0:56:34]} 44... a5 {[%clk
0:17:07]} 45. Rc7+ {[%clk 0:55:18]} 45... Ke8 {[%clk 0:16:53]} 46. Ng6 {[%clk
0:54:04]} 46... Re6 {[%clk 0:17:09]} 47. h5 {[%clk 0:52:16]} 47... Kd8 {[%clk
0:16:09]} 48. Rc5 {[%clk 0:51:36]} 48... f5 {[%clk 0:14:42]} 49. Re5 {[%clk
0:49:40]} 1-0

[Variant "Standard"]
[Site "Europe Echecs"]

[Event "Sunway Sitges Chess Festival"]
[Date "2024.12.22"]
[White "Travadon, Loic"]
[Black "Tejaswini G"]
[WhiteElo "2428"]
[BlackElo "2211"]
[Round "10.23"]
[Result "1-0"]
[TimeControl "40/5400+30:1800+30"]

1. e4 {[%clk 1:10:03]} 1... c5 {[%clk 1:30:41]} 2. Nf3 {[%clk 1:10:28]} 2... d6
{[%clk 1:31:04]} 3. d4 {[%clk 1:10:52]} 3... cxd4 {[%clk 1:31:29]} 4. Nxd4
{[%clk 1:11:18]} 4... Nf6 {[%clk 1:31:52]} 5. Nc3 {[%clk 1:11:44]} 5... a6
{[%clk 1:32:17]} 6. Qd3 {[%clk 1:11:44]} 6... Nbd7 {[%clk 1:28:35]} 7. Be2
{[%clk 1:12:06]} 7... Nc5 {[%clk 1:28:15]} 8. Qe3 {[%clk 1:12:28]} 8... e6
{[%clk 1:26:28]} 9. a4 {[%clk 0:57:10]} 9... b6 {[%clk 1:17:50]} 10. O-O {[%clk
0:35:12]} 10... Bb7 {[%clk 1:16:22]} 11. Rd1 {[%clk 0:35:18]} 11... Qc7 {[%clk
1:07:07]} 12. b4 {[%clk 0:32:26]} 12... Ncxe4 {[%clk 1:00:22]} 13. Nxe4 {[%clk
0:30:55]} 13... Nxe4 {[%clk 0:54:30]} 14. Bh5 {[%clk 0:18:56]} 14... O-O-O
{[%clk 0:45:26]} 15. c4 {[%clk 0:17:00]} 15... d5 {[%clk 0:40:02]} 16. c5 {[%clk
0:15:48]} 16... bxc5 {[%clk 0:38:48]} 17. bxc5 {[%clk 0:16:13]} 17... Bxc5
{[%clk 0:35:36]} 18. Ba3 {[%clk 0:16:36]} 18... Bxa3 {[%clk 0:35:15]} 19. Rxa3
{[%clk 0:16:39]} 19... Nd6 {[%clk 0:34:02]} 20. Rb3 {[%clk 0:15:05]} 20... Nc4
{[%clk 0:32:54]} 21. Qg5 {[%clk 0:14:34]} 21... g6 {[%clk 0:28:35]} 22. Be2
{[%clk 0:13:21]} 22... e5 {[%clk 0:22:42]} 23. Nf3 {[%clk 0:13:21]} 23... f5
{[%clk 0:22:00]} 24. Rdb1 {[%clk 0:13:32]} 24... Bc6 {[%clk 0:18:01]} 25. Qf6
{[%clk 0:13:27]} 25... Rhe8 {[%clk 0:11:00]} 26. Bxc4 {[%clk 0:11:01]} 26...
dxc4 {[%clk 0:11:22]} 27. Rb8+ {[%clk 0:11:22]} 27... Qxb8 {[%clk 0:11:35]} 28.
Qxc6+ {[%clk 0:11:45]} 28... Qc7 {[%clk 0:11:58]} 29. Qxa6+ {[%clk 0:12:10]}
29... Kd7 {[%clk 0:12:12]} 30. Rb7 {[%clk 0:12:33]} 30... Re6 {[%clk 0:06:31]}
31. Rxc7+ {[%clk 0:11:45]} 31... Kxc7 {[%clk 0:07:00]} 32. Qxc4+ {[%clk
0:11:55]} 32... Rc6 {[%clk 0:07:21]} 33. Qf7+ {[%clk 0:12:19]} 33... Rd7 {[%clk
0:06:56]} 34. Qxd7+ {[%clk 0:12:43]} 34... Kxd7 {[%clk 0:07:22]} 35. Nxe5+
{[%clk 0:13:06]} 35... Kc7 {[%clk 0:07:50]} 36. Nxc6 {[%clk 0:13:29]} 36... Kxc6
{[%clk 0:08:18]} 37. f3 {[%clk 0:12:46]} 37... Kb6 {[%clk 0:08:10]} 38. Kf2
{[%clk 0:13:10]} 38... Ka5 {[%clk 0:08:30]} 39. Ke3 {[%clk 0:13:31]} 39... Kxa4
{[%clk 0:08:54]} 40. Kf4 {[%clk 0:43:57]} 40... Kb5 {[%clk 0:39:07]} 41. Kg5
{[%clk 0:44:21]} 41... Kc6 {[%clk 0:39:31]} 42. Kh6 {[%clk 0:44:45]} 42... Kd6
{[%clk 0:39:48]} 43. Kxh7 {[%clk 0:45:06]} 43... Kd5 {[%clk 0:39:27]} 1-0

[Variant "Standard"]
[Site "Europe Echecs"]

[Event "Sunway Sitges Chess Festival"]
[Date "2024.12.22"]
[White "Domene Mulyukov, Alexander"]
[Black "Tan, Jun Ying"]
[WhiteElo "2205"]
[BlackElo "2357"]
[Round "10.24"]
[Result "0-1"]
[TimeControl "40/5400+30:1800+30"]

1. e4 {[%clk 1:30:53]} 1... c5 {[%clk 1:30:50]} 2. Nf3 {[%clk 1:31:15]} 2... d6
{[%clk 1:31:07]} 3. Bc4 {[%clk 1:31:36]} 3... Nf6 {[%clk 1:28:26]} 4. d3 {[%clk
1:31:58]} 4... e6 {[%clk 1:27:08]} 5. O-O {[%clk 1:32:17]} 5... Be7 {[%clk
1:27:08]} 6. Bb3 {[%clk 1:32:02]} 6... O-O {[%clk 1:27:16]} 7. c3 {[%clk
1:32:27]} 7... Nc6 {[%clk 1:12:53]} 8. Re1 {[%clk 1:32:46]} 8... Rb8 {[%clk
1:12:19]} 9. Nbd2 {[%clk 1:32:01]} 9... b5 {[%clk 1:06:24]} 10. a3 {[%clk
1:19:44]} 10... Qc7 {[%clk 1:04:26]} 11. Nf1 {[%clk 1:12:34]} 11... Na5 {[%clk
0:57:23]} 12. Bc2 {[%clk 1:08:03]} 12... c4 {[%clk 0:57:46]} 13. d4 {[%clk
1:06:57]} 13... e5 {[%clk 0:57:50]} 14. h3 {[%clk 0:43:38]} 14... Re8 {[%clk
0:57:10]} 15. Ng3 {[%clk 0:38:44]} 15... h6 {[%clk 0:54:13]} 16. Nh4 {[%clk
0:31:42]} 16... Bf8 {[%clk 0:41:27]} 17. Nhf5 {[%clk 0:29:18]} 17... exd4 {[%clk
0:39:19]} 18. cxd4 {[%clk 0:22:29]} 18... Nb3 {[%clk 0:33:22]} 19. Bxb3 {[%clk
0:17:41]} 19... cxb3 {[%clk 0:33:45]} 20. Qf3 {[%clk 0:17:59]} 20... Qd8 {[%clk
0:25:18]} 21. Bd2 {[%clk 0:14:12]} 21... d5 {[%clk 0:19:07]} 22. e5 {[%clk
0:05:03]} 22... Ne4 {[%clk 0:19:35]} 23. Nxe4 {[%clk 0:05:31]} 23... dxe4 {[%clk
0:20:02]} 24. Rxe4 {[%clk 0:05:02]} 24... Bb7 {[%clk 0:19:28]} 25. Qg4 {[%clk
0:05:15]} 25... Re6 {[%clk 0:19:47]} 26. Nxh6+ {[%clk 0:01:21]} 26... Rxh6
{[%clk 0:20:09]} 27. Bxh6 {[%clk 0:01:47]} 27... Bxe4 {[%clk 0:20:16]} 28. Bxg7
{[%clk 0:01:34]} 28... Bxg7 {[%clk 0:20:45]} 29. Qxe4 {[%clk 0:02:02]} 29... Qc8
{[%clk 0:19:24]} 30. Rd1 {[%clk 0:01:23]} 30... Qc2 {[%clk 0:19:21]} 31. Rd3
{[%clk 0:01:36]} 31... Qc1+ {[%clk 0:09:14]} 32. Kh2 {[%clk 0:01:58]} 32... Qxb2
{[%clk 0:09:39]} 33. Rg3 {[%clk 0:00:33]} 33... Rb6 {[%clk 0:03:03]} 34. Qa8+
{[%clk 0:00:37]} 34... Kh7 {[%clk 0:03:31]} 35. Qe4+ {[%clk 0:01:06]} 35... Rg6
{[%clk 0:03:30]} 36. e6 {[%clk 0:00:36]} 36... Qxd4 {[%clk 0:03:32]} 37. Qxd4
{[%clk 0:00:31]} 37... Bxd4 {[%clk 0:03:57]} 38. Rxg6 {[%clk 0:00:47]} 38... b2
{[%clk 0:01:52]} 39. exf7 {[%clk 0:00:38]} 39... Bg7 {[%clk 0:01:19]} 40. Rg5
{[%clk 0:30:32]} 40... b1=Q {[%clk 0:31:38]} 41. f4 {[%clk 0:27:37]} 41... Qe4
{[%clk 0:31:09]} 0-1

[Variant "Standard"]
[Site "Europe Echecs"]

[Event "Sunway Sitges Chess Festival"]
[Date "2024.12.22"]
[White "Harish, Neeraj"]
[Black "Domingo Nunez, Alejandro"]
[WhiteElo "2153"]
[BlackElo "2318"]
[Round "10.25"]
[Result "1-0"]
[TimeControl "40/5400+30:1800+30"]

1. e4 {[%clk 1:30:57]} 1... c5 {[%clk 1:23:24]} 2. Nf3 {[%clk 1:31:08]} 2... Nc6
{[%clk 1:23:49]} 3. d4 {[%clk 1:31:26]} 3... cxd4 {[%clk 1:24:13]} 4. Nxd4
{[%clk 1:31:51]} 4... e6 {[%clk 1:24:26]} 5. Nc3 {[%clk 1:32:12]} 5... Qc7
{[%clk 1:24:52]} 6. Be3 {[%clk 1:32:35]} 6... a6 {[%clk 1:25:18]} 7. g4 {[%clk
1:32:25]} 7... Ne5 {[%clk 1:20:00]} 8. f4 {[%clk 1:19:37]} 8... Nc4 {[%clk
1:20:10]} 9. Bxc4 {[%clk 1:19:56]} 9... Qxc4 {[%clk 1:20:34]} 10. g5 {[%clk
1:16:14]} 10... b5 {[%clk 1:19:10]} 11. Qd2 {[%clk 1:11:11]} 11... Bb7 {[%clk
0:59:55]} 12. O-O-O {[%clk 1:04:58]} 12... b4 {[%clk 0:48:40]} 13. Nb3 {[%clk
0:51:09]} 13... Rd8 {[%clk 0:43:24]} 14. Nd5 {[%clk 0:49:12]} 14... exd5 {[%clk
0:42:32]} 15. exd5 {[%clk 0:49:35]} 15... Bd6 {[%clk 0:35:53]} 16. Rhe1 {[%clk
0:42:13]} 16... Kf8 {[%clk 0:36:19]} 17. f5 {[%clk 0:39:21]} 17... f6 {[%clk
0:35:31]} 18. Qf2 {[%clk 0:35:46]} 18... Rc8 {[%clk 0:27:44]} 19. Re2 {[%clk
0:28:41]} 19... h6 {[%clk 0:19:48]} 20. Na5 {[%clk 0:27:13]} 20... Qb5 {[%clk
0:19:08]} 21. Nxb7 {[%clk 0:27:34]} 21... Qxb7 {[%clk 0:19:37]} 22. g6 {[%clk
0:20:41]} 22... b3 {[%clk 0:13:14]} 23. axb3 {[%clk 0:20:11]} 23... Qxb3 {[%clk
0:13:39]} 24. Bf4 {[%clk 0:17:52]} 24... Be5 {[%clk 0:06:11]} 25. Bxe5 {[%clk
0:14:16]} 25... fxe5 {[%clk 0:06:39]} 26. Rxe5 {[%clk 0:14:33]} 26... Nf6 {[%clk
0:07:07]} 27. Rde1 {[%clk 0:12:33]} 27... Qb4 {[%clk 0:05:25]} 28. Qe3 {[%clk
0:09:17]} 28... Qb8 {[%clk 0:01:32]} 29. Re7 {[%clk 0:07:28]} 29... Qd6 {[%clk
0:00:34]} 30. Rf7+ {[%clk 0:07:07]} 30... Kg8 {[%clk 0:01:03]} 31. Qe7 {[%clk
0:06:48]} 31... Qxe7 {[%clk 0:00:40]} 32. Rexe7 {[%clk 0:07:11]} 32... Ne8
{[%clk 0:00:52]} 33. Rxd7 {[%clk 0:06:41]} 33... h5 {[%clk 0:01:20]} 34. h4
{[%clk 0:06:43]} 34... Rh6 {[%clk 0:01:34]} 35. d6 {[%clk 0:05:41]} 35... Nf6
{[%clk 0:01:55]} 36. Rc7 {[%clk 0:05:07]} 36... Rd8 {[%clk 0:00:37]} 37. d7
{[%clk 0:04:52]} 1-0

[Variant "Standard"]
[Site "Europe Echecs"]

[Event "Sunway Sitges Chess Festival"]
[Date "2024.12.22"]
[White "Ibrahimova, Sabina"]
[Black "Anand, Batsukh"]
[WhiteElo "2179"]
[BlackElo "2290"]
[Round "10.26"]
[Result "1/2-1/2"]
[TimeControl "40/5400+30:1800+30"]

1. c4 {[%clk 1:24:25]} 1... Nf6 {[%clk 1:30:52]} 2. Nc3 {[%clk 1:24:25]} 2... e5
{[%clk 1:31:15]} 3. Nf3 {[%clk 1:24:26]} 3... Nc6 {[%clk 1:31:37]} 4. e4 {[%clk
1:24:27]} 4... Bb4 {[%clk 1:32:00]} 5. d3 {[%clk 1:24:28]} 5... d6 {[%clk
1:32:22]} 6. a3 {[%clk 1:24:32]} 6... Bc5 {[%clk 1:32:31]} 7. b4 {[%clk
1:24:05]} 7... Bd4 {[%clk 1:32:28]} 8. Nxd4 {[%clk 1:20:09]} 8... Nxd4 {[%clk
1:32:45]} 9. h3 {[%clk 1:20:32]} 9... h6 {[%clk 1:29:14]} 10. Ne2 {[%clk
1:16:22]} 10... Nxe2 {[%clk 1:15:19]} 11. Bxe2 {[%clk 1:15:24]} 11... O-O {[%clk
1:06:14]} 12. O-O {[%clk 1:12:03]} 12... c6 {[%clk 0:58:32]} 13. f4 {[%clk
1:06:44]} 13... a5 {[%clk 0:56:57]} 14. Be3 {[%clk 0:56:47]} 14... Re8 {[%clk
0:54:52]} 15. Qd2 {[%clk 0:53:33]} 15... Qe7 {[%clk 0:42:51]} 16. Qb2 {[%clk
0:35:16]} 16... Nd7 {[%clk 0:32:10]} 17. Rf2 {[%clk 0:30:02]} 17... exf4 {[%clk
0:31:23]} 18. Bxf4 {[%clk 0:26:41]} 18... Ne5 {[%clk 0:29:57]} 19. Raf1 {[%clk
0:26:38]} 19... axb4 {[%clk 0:28:42]} 20. axb4 {[%clk 0:23:47]} 20... Be6 {[%clk
0:28:40]} 21. c5 {[%clk 0:20:46]} 21... Qf6 {[%clk 0:25:33]} 22. d4 {[%clk
0:15:22]} 22... Nc4 {[%clk 0:25:17]} 23. Qc3 {[%clk 0:10:40]} 23... Ra3 {[%clk
0:24:06]} 24. Qc1 {[%clk 0:11:05]} 24... Qxd4 {[%clk 0:22:48]} 25. Rd1 {[%clk
0:09:36]} 25... Qf6 {[%clk 0:17:25]} 26. e5 {[%clk 0:05:15]} 26... dxe5 {[%clk
0:17:07]} 27. Bh2 {[%clk 0:03:57]} 27... Qg6 {[%clk 0:14:21]} 28. Bxc4 {[%clk
0:04:17]} 28... Rxh3 {[%clk 0:13:50]} 29. Bxe6 {[%clk 0:01:16]} 29... Rxe6
{[%clk 0:14:15]} 30. Rd7 {[%clk 0:00:46]} 30... f5 {[%clk 0:12:50]} 31. Rd6
{[%clk 0:00:56]} 31... Rh4 {[%clk 0:11:19]} 32. Qd1 {[%clk 0:00:48]} 32... Re4
{[%clk 0:08:39]} 33. Qb3 {[%clk 0:00:54]} 33... Kf7 {[%clk 0:08:17]} 34. Rd7+
{[%clk 0:00:41]} 34... Kf6 {[%clk 0:08:43]} 35. Qd3 {[%clk 0:00:47]} 35... f4
{[%clk 0:05:33]} 36. Rd6 {[%clk 0:00:43]} 36... Re1+ {[%clk 0:05:45]} 37. Rf1
{[%clk 0:01:10]} 37... Qxd3 {[%clk 0:04:51]} 38. Rxd3 {[%clk 0:01:32]} 38...
Rxf1+ {[%clk 0:05:15]} 39. Kxf1 {[%clk 0:01:58]} 39... Re7 {[%clk 0:05:29]} 40.
Ke2 {[%clk 0:30:40]} 40... Kf5 {[%clk 0:35:10]} 41. Ra3 {[%clk 0:25:11]} 41...
g5 {[%clk 0:14:54]} 42. Ra7 {[%clk 0:23:48]} 42... Rc7 {[%clk 0:15:05]} 43. Ra8
{[%clk 0:23:29]} 43... h5 {[%clk 0:14:35]} 44. Rf8+ {[%clk 0:20:19]} 44... Ke4
{[%clk 0:15:00]} 45. Rh8 {[%clk 0:19:34]} 45... h4 {[%clk 0:13:29]} 46. Rg8
{[%clk 0:20:00]} 46... h3 {[%clk 0:13:19]} 47. g4 {[%clk 0:14:15]} 47... Rd7
{[%clk 0:11:00]} 48. Rxg5 {[%clk 0:13:01]} 48... Rd4 {[%clk 0:11:16]} 49. Rh5
{[%clk 0:13:08]} 49... Rxb4 {[%clk 0:11:32]} 50. Rxh3 {[%clk 0:13:34]} 50...
Rb2+ {[%clk 0:11:57]} 51. Kf1 {[%clk 0:12:45]} 51... Rb1+ {[%clk 0:12:05]} 52.
Kg2 {[%clk 0:12:12]} 52... Rb2+ {[%clk 0:10:49]} 53. Kf1 {[%clk 0:12:36]} 53...
Rc2 {[%clk 0:05:30]} 54. Bg1 {[%clk 0:11:09]} 54... f3 {[%clk 0:05:51]} 55. Rh2
{[%clk 0:02:55]} 55... Rc1+ {[%clk 0:05:58]} 56. Kf2 {[%clk 0:03:22]} 56... Kf4
{[%clk 0:04:20]} 57. Rh7 {[%clk 0:02:30]} 57... Rc2+ {[%clk 0:04:07]} 58. Kf1
{[%clk 0:02:56]} 58... e4 {[%clk 0:02:54]} 59. Rf7+ {[%clk 0:02:28]} 59... Kg3
{[%clk 0:02:52]} 60. Be3 {[%clk 0:02:49]} 60... Rb2 {[%clk 0:02:24]} 61. Bf4+
{[%clk 0:02:41]} 61... Kxg4 {[%clk 0:02:18]} 62. Be3 {[%clk 0:01:30]} 62... Rb3
{[%clk 0:01:15]} 63. Kf2 {[%clk 0:01:33]} 63... Rb2+ {[%clk 0:01:36]} 64. Kf1
{[%clk 0:02:00]} 64... Rb4 {[%clk 0:00:44]} 65. Kf2 {[%clk 0:02:15]} 65... Rb2+
{[%clk 0:00:50]} 66. Kf1 {[%clk 0:02:41]} 66... Rb1+ {[%clk 0:00:43]} 67. Kf2
{[%clk 0:03:07]} 67... Rb2+ {[%clk 0:00:45]} 68. Kf1 {[%clk 0:03:33]} 68... Rb1+
{[%clk 0:00:43]} 69. Kf2 {[%clk 0:03:59]} 69... Rb2+ {[%clk 0:00:37]} 70. Kf1
{[%clk 0:04:18]} 70... Rb1+ {[%clk 0:00:37]} 1/2-1/2

[Variant "Standard"]
[Site "Europe Echecs"]